Cogmind - Beta 17.1 @@@ ROGUE MODE // 2026.08.30 @ 17:48:02 Player: Somberlain Result: Core melted Performance ------------- Evolutions (5) 2500 Regions Visited (17) 3400 Robots Destroyed (121) 605 Value Destroyed (4189) 4189 Prototype IDs (24) 480 Alien Tech Used (0) 0 Bonus (4544) 4544 TOTAL SCORE: 15718 Bonus ------- High Alert Combat Kills 52 Follower Combat Kills 892 Entered Garrisons 800 Used RIF Installer 2000 Entered DSFs 500 Aligned with FarCom 300 Cogmind --------- Core Integrity 0/1000 Matter 149/300 Energy 88/100 System Corruption 1% Temperature Critical (1908) Movement Core (100) Ox1 Location -5/DSF Parts ------- > --- POWER (2) -------- (None) > --- PROPULSION (3) --- (None) > --- UTILITY (9) ------ Advanced Heat Sink Improved Cooling System Weapon Cycler Weapon Cycler Graphene Brace Relay Coupler [Specialist] (5) > --- WEAPON (3) ------- (None) > --- INVENTORY (5) ---- Advanced Medium Treads Advanced Medium Treads Advanced Medium Treads HERF Cannon Heavy Plasma Cannon Peak State ------------ > --- POWER ------------ Particle Reactor Light Quantum Reactor > --- PROPULSION ------- Myomer Leg Biometal Leg Biometal Leg > --- UTILITY ---------- Cryofiber Web Advanced Heat Sink Medium Storage Unit Advanced Particle Charger Transmission Jammer Graphene Brace Advanced Hardlight Generator > --- WEAPON ----------- Dispersion Rifle Dispersion Rifle Dispersion Rifle > --- INVENTORY -------- Hybrid Deuterium Engine Relay Coupler [NC] Relay Coupler [Specialist] Relay Coupler [Hunter] Relay Coupler [Heavy] Relay Coupler [Behemoth] Sensor Drone Bay HERF Cannon Remote Datajack Field Lobotomy Kit [Rating: 100] Favorites ----------- Power Particle Reactor Engine Improved Ion Engine Power Core Light Nuclear Core Reactor Particle Reactor Propulsion Aluminum Leg Leg Aluminum Leg Hover Unit Gravmag System Utility Cryofiber Web Device Cryofiber Web Storage Small Storage Unit Processor Core Analyzer Hackware Hacking Suite Protection Light Armor Plating Weapon Ion Cannon Energy Gun Quantum Rifle Energy Cannon Ion Cannon Ballistic Gun KE Penetrator Ballistic Cannon Gauss Cannon Special Weapon Field Lobotomy Kit Build | -11 -10 -10 -9 -9 -9 -8 -8 -7 -7 -7 -7 -6 -6 -6 -6 -5 -5 ------- Run | Yrd Mat Min Mat Min Exi Min Mat Fac Gar Fac Gar Fac Gar Fac Gar Fac DSF Slots Evolved 10 | . . . 2 . . . 2 2 . . . 2 . . . 2 . Power 1 | . . . . . . . . . . . . 1 . . . . . Propulsion 1 | . . . . . . . . 1 . . . . . . . . . Utility 7 | . . . 2 . . . 2 . . . . 1 . . . 2 . Weapon 1 | . . . . . . . . 1 . . . . . . . . . Parts Attached 131 | 6 3 1 10 . 1 14 26 14 3 1 6 3 9 . 23 . 11 Power 20 | 1 . . 2 . . 3 4 2 1 . . 1 1 . 3 . 2 Engine 10 | 1 . . 2 . . 1 3 1 . . . 1 . . 1 . . Core 8 | . . . . . . 2 1 1 . . . . . . 2 . 2 Reactor 2 | . . . . . . . . . 1 . . . 1 . . . . Propulsion 27 | 2 . . . . . 4 7 4 . 1 3 . 2 . 4 . . Treads . | . . . . . . . . . . . . . . . . . . Leg 23 | 2 . . . . . 4 3 4 . 1 3 . 2 . 4 . . Wheel . | . . . . . . . . . . . . . . . . . . Hover 4 | . . . . . . . 4 . . . . . . . . . . Flight . | . . . . . . . . . . . . . . . . . . Utility 44 | 1 1 1 2 . . 3 9 5 1 . 2 1 2 . 9 . 7 Device 24 | . 1 1 . . . 1 3 2 1 . 2 . 2 . 7 . 4 Storage 4 | 1 . . . . . . 1 2 . . . . . . . . . Processor 6 | . . . 1 . . . 5 . . . . . . . . . . Hackware 5 | . . . . . . . . 1 . . . 1 . . 2 . 1 Protection 5 | . . . 1 . . 2 . . . . . . . . . . 2 Artifact . | . . . . . . . . . . . . . . . . . . Weapon 40 | 2 2 . 6 . 1 4 6 3 1 . 1 1 4 . 7 . 2 Energy Gun 17 | 2 2 . 6 . . 3 . . 1 . . . . . 3 . . Energy Cannon 12 | . . . . . . . 5 1 . . . . 2 . 3 . 1 Ballistic Gun 5 | . . . . . . 1 . . . . 1 1 2 . . . . Ballistic Cannon 2 | . . . . . . . . 2 . . . . . . . . . Launcher . | . . . . . . . . . . . . . . . . . . Special Weapon 4 | . . . . . 1 . 1 . . . . . . . 1 . 1 Impact Weapon . | . . . . . . . . . . . . . . . . . . Slashing Weapon . | . . . . . . . . . . . . . . . . . . Piercing Weapon . | . . . . . . . . . . . . . . . . . . Special Melee Weapon . | . . . . . . . . . . . . . . . . . . Unidentified Prototypes 1 | . . 1 . . . . . . . . . . . . . . . Parts Lost 42 | . . . 3 . . 8 11 . . . 1 1 . . 11 . 7 Power 6 | . . . 1 . . . 2 . . . . . . . 2 . 1 Propulsion 13 | . . . . . . 4 3 . . . . 1 . . 3 . 2 Utility 15 | . . . 1 . . 3 3 . . . 1 . . . 4 . 3 Weapon 8 | . . . 1 . . 1 3 . . . . . . . 2 . 1 Highest Loss Streak 8 | . . . 3 . . 6 3 . . . 1 1 . . 8 . 4 To Critical Strikes . | . . . . . . . . . . . . . . . . . . Average Backups 7 | . 2 3 3 4 4 7 5 6 9 10 9 8 9 10 8 9 6 Power . | . . . . . . . . 1 1 2 2 . 1 1 . 1 . Propulsion . | . . . . . . . . 1 1 1 1 . . . . . . Utility 2 | . . . . . . 1 2 2 4 4 3 3 4 7 5 5 3 Weapon 1 | . 2 3 3 4 4 3 1 . . 1 1 1 1 . 1 2 1 Tool/Special . | . . . . . . . . . . . . . . . . . . Unused Backups 18 | . . . . . . . 1 . 3 . 1 1 7 . 2 . 3 Power 2 | . . . . . . . . . . . . 1 1 . . . . Propulsion . | . . . . . . . . . . . . . . . . . . Utility 14 | . . . . . . . . . 3 . 1 . 6 . 1 . 3 Weapon 2 | . . . . . . . 1 . . . . . . . 1 . . Tool/Special . | . . . . . . . . . . . . . . . . . . Average Slot Usage (%) 92 | . 96 100 95 99 100 71 96 99 100 100 99 96 100 100 83 70 77 Engine 5 | . 14 14 10 11 11 4 6 2 . . . 6 4 . 2 5 4 Core 2 | . . . . . . 5 1 4 4 . . . . . 2 5 4 Reactor 2 | . . . . . . . . . 2 7 7 6 7 13 6 . . Leg 17 | . 28 28 22 22 22 13 5 23 23 23 23 18 20 20 18 17 9 Hover 1 | . . . . . . . 12 . . . . . . . . . . Device 21 | . 10 14 18 21 22 11 16 22 30 30 29 27 26 26 26 17 30 Storage 8 | . 14 14 11 11 11 10 7 7 7 7 7 6 6 6 5 5 2 Processor 6 | . . . 7 . . . 27 13 . . . . . . . . . Hackware 3 | . . . . . . . . 1 7 7 7 9 13 13 2 . 3 Protection 2 | . . . 3 11 11 8 . . . . . . . . . . 1 Energy Gun 8 | . 28 28 22 22 18 16 1 . 2 7 7 6 2 6 9 . . Energy Cannon 5 | . . . . . . . 15 11 4 . . . 3 13 6 17 15 Ballistic Gun 1 | . . . . . . . 1 . . . 6 7 13 . . . . Ballistic Cannon 3 | . . . . . . . . 10 15 15 7 4 . . . . . Peak Build Rating 100 | 6 7 14 18 19 27 20 47 50 59 59 72 78 93 93 100 55 76 Average Rating 43 | 4 6 9 14 18 21 12 36 46 51 59 68 72 83 93 72 55 64 On Entrance 40 | . 6 7 8 12 19 20 19 38 49 59 59 69 74 93 93 55 55 Avg Prop Armor Cover (%) . | . . . . . . . . . . . . . . . . . . Naked Turns 20 | . . . . . . . . . . . . . . . 20 . . Heaviest Build 82 | 14 15 28 31 36 41 25 25 43 51 51 51 71 79 79 80 58 82 Greatest Support 81 | 20 20 20 20 20 20 20 32 54 54 51 70 70 81 81 81 45 45 Greatest Overweight (x) 10 | . . 1 1 1 2 5 4 . . . 1 1 . . 10 1 4 Average Overweight (x) . | . . . . 1 1 1 . . . . . . . . . 1 1 Largest Inventory Capacity 10 | 8 8 8 8 8 8 8 8 10 10 10 10 10 10 10 10 10 10 Average Capacity 8 | 7 8 8 8 8 8 7 6 7 10 10 10 10 10 10 9 10 7 Most Carried 10 | . 3 4 5 5 5 8 8 10 10 10 10 9 10 10 10 9 10 Average Carried 7 | . 2 3 3 4 4 7 5 6 9 10 9 8 9 10 8 9 6 Final Capacity 10 | 8 8 8 8 8 8 8 5 10 10 10 10 10 10 10 10 10 5 Final Carried 10 | . 3 4 5 4 5 4 5 10 10 10 10 9 10 10 9 9 5 Class Distribution -------------------- 42% | Mutant 20% | Skirmisher 9% | Gunner 7% | Bothacker-Skirmisher 5% | Hacker-Skirmisher 4% | Scavenger-Skirmisher 4% | Bothacker-Tank Dominant Class ---------------- Mutant | -10/Materials Mutant | -10/Mines Mutant | -9/Materials Mutant | -9/Mines Mutant | -9/Exiles Mutant | -8/Mines Mutant | -8/Materials Gunner | -7/Factory Skirmisher | -7/Garrison Skirmisher | -7/Factory Skirmisher | -7/Garrison Skirmisher | -6/Factory Hacker-Skirmisher | -6/Garrison Bothacker-Skirmisher | -6/Factory Bothacker-Tank | -6/Garrison Bothacker-Tank | -5/Factory Scavenger-Skirmisher | -5/DSF Resources | -11 -10 -10 -9 -9 -9 -8 -8 -7 -7 -7 -7 -6 -6 -6 -6 -5 -5 ----------- Run | Yrd Mat Min Mat Min Exi Min Mat Fac Gar Fac Gar Fac Gar Fac Gar Fac DSF Matter Collected 3240 | 191 . 119 95 . . 264 415 299 174 . 269 170 642 . 420 . 182 Remotely . | . . . . . . . . . . . . . . . . . . Salvage Created 4274 | . . 43 360 . . 496 836 558 166 . 257 153 715 . 321 . 369 Parts 243 | . . 5 23 . . 28 73 29 11 . 15 3 37 . 10 . 9 Haulers Intercepted . | . . . . . . . . . . . . . . . . . . Recyclers Shooed 2 | . . . . . . . . 2 . . . . . . . . . Parts Field Recycled . | . . . . . . . . . . . . . . . . . . Retrieved Matter . | . . . . . . . . . . . . . . . . . . Parts Self-Destructed . | . . . . . . . . . . . . . . . . . . Prevented . | . . . . . . . . . . . . . . . . . . Parts Restored . | . . . . . . . . . . . . . . . . . . Kills | -11 -10 -10 -9 -9 -9 -8 -8 -7 -7 -7 -7 -6 -6 -6 -6 -5 -5 ------- Run | Yrd Mat Min Mat Min Exi Min Mat Fac Gar Fac Gar Fac Gar Fac Gar Fac DSF Combat Hostiles Destroyed 98 | . . 3 9 . . 15 18 9 8 . 6 3 13 . 5 . 9 Guns 48 | . . 3 8 . . 15 7 . . . 4 1 6 . 4 . . Cannons 42 | . . . . . . . 10 7 8 . 2 2 5 . 1 . 7 AOE 3 | . . . 1 . . . . . . . . . 2 . . . . Classes Destroyed 13 | . . 1 2 . . 2 6 1 . . . . . . . . 1 Worker 8 | . . . . . . . 7 1 . . . . . . . . . Builder 3 | . . . . . . . 3 . . . . . . . . . . Tunneler 3 | . . . . . . . 3 . . . . . . . . . . Recycler 3 | . . . . . . . 1 2 . . . . . . . . . Operator 1 | . . . . . . . 1 . . . . . . . . . . Watcher 5 | . . . . . . . 2 2 . . . . . . 1 . . Swarmer 39 | . . 3 3 . . 6 8 . 8 . . . 6 . . . 5 Grunt 37 | . . . 2 . . 7 7 3 . . 4 3 4 . 4 . 3 Duelist 1 | . . . . . . 1 . . . . . . . . . . . Sentry 8 | . . . 4 . . . 2 . . . . . 2 . . . . Specialist 1 | . . . . . . . . . . . . . . . . . 1 Hunter 3 | . . . . . . 1 1 1 . . . . . . . . . Programmer 9 | . . . . . . . . 5 . . 2 . 1 . 1 . . Best Kill Streak 9 | . . 3 3 . . 4 9 7 4 . 6 3 4 . 2 . 5 Combat Bots Only 6 | . . 3 3 . . 4 3 4 4 . 6 3 4 . 2 . 5 Max Kills in Single Turn 8 | . . 1 1 . . 2 8 2 1 . 1 1 2 . 1 . 2 Gunslinging . | . . . . . . . . . . . . . . . . . . Exploded 2 | . . . 1 . . . . . . . . . 2 . . . . Melee . | . . . . . . . . . . . . . . . . . . Uniques/NPCs Destroyed . | . . . . . . . . . . . . . . . . . . Combat | -11 -10 -10 -9 -9 -9 -8 -8 -7 -7 -7 -7 -6 -6 -6 -6 -5 -5 -------- Run | Yrd Mat Min Mat Min Exi Min Mat Fac Gar Fac Gar Fac Gar Fac Gar Fac DSF Hostile Shots Fired 805 | . . 17 80 . . 81 100 54 18 . 34 22 62 . 200 . 137 Missed 256 | . . 4 27 . . 22 29 24 9 . 12 12 25 . 68 . 24 Hits 549 | . . 13 53 . . 59 71 30 9 . 22 10 37 . 132 . 113 Melee 2 | . . . . . . 2 . . . . . . . . . . . Projectile 547 | . . 13 53 . . 57 71 30 9 . 22 10 37 . 132 . 113 AOE 1 | . . . . . . . . . . . . . . . 1 . . Critical Strikes 17 | . . . 2 . . 2 2 1 . . . . 1 . 6 . 3 Actively Blocked 6 | . . . . . . . . . . . . . . . 3 . 3 Part Disruptions 6 | . . . . . . . . 1 . . 2 . . . 1 . 2 Damage Taken 9615 | . . 111 631 . . 867 1060 612 132 69 334 187 610 . 1888 . 3114 Core 2271 | . . 32 119 . . 203 177 62 17 . 14 18 73 . 537 . 1019 Absorbed by Shields 417 | . . . . . . . . . . . . . 33 . 384 . . Regen/Repaired (Parts) 156 | . . . . . . . 15 28 . . . 113 . . . . . Core Remaining (%) 64 | 100 . 87 . . . 19 67 . . . 86 . . . 26 . . Volleys Fired 344 | . . 9 29 . . 45 71 30 11 . 23 17 51 . 37 . 21 Largest 3 | . . 2 2 . . 2 2 3 3 . 3 3 3 . 3 . 3 Hottest 270 | . . 100 100 . . 130 135 160 145 . 167 167 270 . 264 . 270 Shots Fired 745 | . . 18 58 . . 75 132 79 29 . 56 37 123 . 83 . 55 Gun 401 | . . 18 58 . . 75 38 . . . 33 22 93 . 64 . . Cannon 329 | . . . . . . . 91 79 29 . 23 15 29 . 9 . 54 Launcher . | . . . . . . . . . . . . . . . . . . Special 15 | . . . . . . . 3 . . . . . 1 . 10 . 1 Kinetic 219 | . . . . . . 13 16 35 20 . 39 27 69 . . . . Thermal 453 | . . 18 36 . . 62 115 44 9 . 17 10 24 . 64 . 54 Explosive . | . . . . . . . . . . . . . . . . . . Electromagnetic 60 | . . . 22 . . . . . . . . . 29 . 9 . . Robot Hit Streak 19 | . . 4 16 . . 12 13 6 3 . 8 3 11 . 11 . 19 Robot Miss Streak 12 | . . 3 3 . . 12 4 5 2 . 3 6 3 . 6 . 2 Penetration Max 1 | . . . . . . 1 1 . . . . . . . . . . Secondary Targets 3 | . . . 1 . . 1 1 . . . . . . . . . . Max Gunslinging Chain 1 | . . . 1 . . 1 1 . . . . . . . . . . Shots Hit Robots 421 | . . 9 40 . . 47 72 40 8 . 32 15 70 . 52 . 36 Core Hits 203 | . . 3 15 . . 46 45 18 8 . 10 6 30 . 12 . 10 Critical Kills 8 | . . . . . . . 1 3 . . . . 1 . 1 . 2 Critical Parts Destroyed 6 | . . . . . . . . . . . . . 1 . 5 . . Critical Strikes 23 | . . 1 2 . . 2 1 5 . . . . 4 . 6 . 2 Burn 5 | . . 1 2 . . 2 . . . . . . . . . . . Meltdown 6 | . . . . . . . 1 3 . . . . . . . . 2 Destroy 8 | . . . . . . . . . . . . . 2 . 6 . . Blast 2 | . . . . . . . . 2 . . . . . . . . . Corrupt 2 | . . . . . . . . . . . . . 2 . . . . Melee Attacks . | . . . . . . . . . . . . . . . . . . Impact . | . . . . . . . . . . . . . . . . . . Slashing . | . . . . . . . . . . . . . . . . . . Piercing . | . . . . . . . . . . . . . . . . . . Sneak Attacks . | . . . . . . . . . . . . . . . . . . Combat Hostiles . | . . . . . . . . . . . . . . . . . . Follow-up Attacks . | . . . . . . . . . . . . . . . . . . Damage Inflicted 11236 | . . 138 542 . . 851 2196 1184 224 . 995 388 1891 . 1638 . 1189 Guns 5601 | . . 138 506 . . 844 431 . . . 776 244 1352 . 1310 . . Cannons 4841 | . . . . . . . 1162 1176 224 . 219 144 410 . 317 . 1189 Explosions 764 | . . . 36 . . . 599 . . . . . 129 . . . . Melee . | . . . . . . . . . . . . . . . . . . Ramming 26 | . . . . . . 7 . 8 . . . . . . 11 . . Kinetic 2765 | . . . . . . 251 213 480 144 . 583 276 818 . . . . Thermal 7551 | . . 138 375 . . 593 1983 696 80 . 412 112 663 . 1310 . 1189 Explosive . | . . . . . . . . . . . . . . . . . . Electromagnetic 894 | . . . 167 . . . . . . . . . 410 . 317 . . Impact . | . . . . . . . . . . . . . . . . . . Slashing . | . . . . . . . . . . . . . . . . . . Piercing . | . . . . . . . . . . . . . . . . . . Highest Corruption 13 | . . . . . . . 1 2 2 2 6 . . . 13 . 1 Average Corruption 3 | . . . . . . . 1 2 2 2 5 . . . 9 . 1 Corruption Purged . | . . . . . . . . . . . . . . . . . . Corruption Blocked . | . . . . . . . . . . . . . . . . . . Effects 94 | . . . . . . . 7 13 24 5 16 . . . 25 . 4 Message Errors 27 | . . . . . . . 1 6 7 4 2 . . . 4 . 3 Matter Fused 19 | . . . . . . . 2 2 6 . 2 . . . 7 . . Heat Flow Errors 14 | . . . . . . . 1 1 2 1 4 . . . 4 . 1 Energy Discharges 14 | . . . . . . . . 3 3 . 5 . . . 3 . . Parts Rejected 1 | . . . . . . . . . . . . . . . 1 . . Parts Fused 1 | . . . . . . . . . 1 . . . . . . . . Data Loss (minor) 7 | . . . . . . . 1 . 3 . 1 . . . 2 . . Data Loss (major) 5 | . . . . . . . . 1 1 . . . . . 3 . . Misfires 3 | . . . . . . . 1 . 1 . . . . . 1 . . Alerts 2 | . . . . . . . 1 . . . 1 . . . . . . Weapon Failures 1 | . . . . . . . . . . . 1 . . . . . . Overload Shots . | . . . . . . . . . . . . . . . . . . Overflow Damage 226 | . . . . . . . 185 . . . 1 . . . 26 . 14 Projectiles 56 | . . . . . . . 15 . . . 1 . . . 26 . 14 Explosions 170 | . . . . . . . 170 . . . . . . . . . . Melee . | . . . . . . . . . . . . . . . . . . Knockbacks 1 | . . . . . . . . 1 . . . . . . . . . Impact . | . . . . . . . . . . . . . . . . . . Kinetic 1 | . . . . . . . . 1 . . . . . . . . . Secondary . | . . . . . . . . . . . . . . . . . . Self-Inflicted Damage 256 | . . . 36 . . . 170 . . . . . 50 . . . . Shots 4 | . . . 1 . . . 2 . . . . . 1 . . . . Rammed . | . . . . . . . . . . . . . . . . . . Targets Rammed 5 | . . . . . . 2 . 1 . . . . . . 2 . . Kicked 5 | . . . . . . 2 . 1 . . . . . . 2 . . Crushed . | . . . . . . . . . . . . . . . . . . Highest Temperature 1908 | . . 312 129 . . 371 167 119 132 48 55 . 146 . 344 . 1908 Average Temperature 171 | . . 171 57 . . 172 64 64 80 48 43 . 69 . 118 . 381 Received Heat Transfer 2051 | . . . 123 . . 312 297 90 . . 54 90 204 . 422 . 459 Effects 40 | . . . . . . 10 . . . . . . . . 4 . 26 Shutdowns 3 | . . . . . . 1 . . . . . . . . . . 2 Energy Bleed 7 | . . . . . . 3 . . . . . . . . . . 4 Interference 10 | . . . . . . 4 . . . . . . . . 4 . 2 Matter Decay 4 | . . . . . . . . . . . . . . . . . 4 Damage (minor) 5 | . . . . . . 2 . . . . . . . . . . 3 Damage (major) 6 | . . . . . . . . . . . . . . . . . 6 Damage (core) 5 | . . . . . . . . . . . . . . . . . 5 Siege Activations . | . . . . . . . . . . . . . . . . . . Martial Activations . | . . . . . . . . . . . . . . . . . . Shielding Activations . | . . . . . . . . . . . . . . . . . . Robots Disrupted . | . . . . . . . . . . . . . . . . . . Combat Hostiles . | . . . . . . . . . . . . . . . . . . Robots Corrupted . | . . . . . . . . . . . . . . . . . . Combat Hostiles . | . . . . . . . . . . . . . . . . . . Parts Fried 2 | . . . . . . . . . . . . . 2 . . . . Impact Corruptions . | . . . . . . . . . . . . . . . . . . Robots Melted 6 | . . . . . . . 1 3 . . . . . . . . 2 Combat Hostiles 5 | . . . . . . . 1 2 . . . . . . . . 2 Parts Melted 18 | . . 2 . . . 3 3 5 . . . . . . 1 . 4 Heat Transferred 11597 | . . 481 1197 . . 1341 2856 1036 111 . 481 148 716 . 1380 . 1850 Parts Sabotaged . | . . . . . . . . . . . . . . . . . . Parts Stolen . | . . . . . . . . . . . . . . . . . . Parts Stripped . | . . . . . . . . . . . . . . . . . . Power Chain Reactions 2 | . . . 1 . . . . . . . . . 1 . . . . Alert | -11 -10 -10 -9 -9 -9 -8 -8 -7 -7 -7 -7 -6 -6 -6 -6 -5 -5 ------- Run | Yrd Mat Min Mat Min Exi Min Mat Fac Gar Fac Gar Fac Gar Fac Gar Fac DSF Maximum Alert Level 2 | . . . . . . . 1 . 1 . 1 . 2 1 2 1 1 Low Security (%) 78 | 100 100 100 100 100 . 100 89 100 51 100 37 100 36 . 38 . 36 Level 1 19 | . . . . . . . 10 . 48 . 62 . 41 100 53 100 63 Level 2 2 | . . . . . . . . . . . . . 21 . 7 . . Level 3 . | . . . . . . . . . . . . . . . . . . Level 4 . | . . . . . . . . . . . . . . . . . . Level 5 . | . . . . . . . . . . . . . . . . . . High Security . | . . . . . . . . . . . . . . . . . . Max Security . | . . . . . . . . . . . . . . . . . . Sterilizations 1 | . . . . . . . . . . . . . . . . . 1 Peak Influence 540 | . . 60 80 . . 139 224 124 307 161 225 117 540 283 436 228 247 Initial 283 | . . . . . . . 27 86 53 161 . 117 . 283 142 228 162 Average 98 | . . 12 11 . . 33 89 28 175 44 172 30 233 244 247 228 208 Influence Increases 3962 | . . 70 257 . . 511 825 398 254 . 235 69 680 . 464 4 195 Destroy 0b10 Robot/C 2270 | . . 60 180 . . 380 440 180 160 . 120 45 360 . 210 . 135 Destroy 0b10 Robot/NC 126 | . . . . . . . 85 25 . . . . 8 . 8 . . Destroy Leader 418 | . . 10 50 . . 70 104 74 10 . 20 8 24 . 24 . 24 Allied During Kill 90 | . . . . . . 16 12 . . . . . 47 . 15 . . Successful Hack 97 | . . . 23 . . . 27 19 24 . . . . . . 4 . Disable Machine 135 | . . . . . . . 75 60 . . . . . . . . . Anti-Garrison Action 188 | . . . . . . . . . . . . . 113 . 75 . . Destroy Structure 173 | . . . 4 . . . 37 25 15 . 20 16 44 . 12 . . Lose Combat Pursuer 465 | . . . . . . 45 45 15 45 . 75 . 84 . 120 . 36 Influence Decreases 3725 | . . 70 257 . . 441 705 512 23 307 10 294 140 337 231 208 190 Entered New Map 1020 | . . . . . . . 43 104 23 146 . 108 . 257 61 208 70 Time Decay 1972 | . . 70 183 . . 327 567 408 . 161 . 176 . 80 . . . Lost Part 395 | . . . 30 . . 70 95 . . . 10 10 . . 110 . 70 Lost Ally 294 | . . . . . . 44 . . . . . . 140 . 60 . 50 Purge Threat 44 | . . . 44 . . . . . . . . . . . . . . Squads Dispatched 22 | . 1 . 2 . . . 6 6 . 1 . 3 . . . . 3 Investigation 5 | . 1 . 1 . . . 1 1 . . . 1 . . . . . Extermination 8 | . . . . . . . . 5 . 1 . 2 . . . . . Reinforcement 9 | . . . 1 . . . 5 . . . . . . . . . 3 Assault . | . . . . . . . . . . . . . . . . . . Garrison . | . . . . . . . . . . . . . . . . . . Intercept . | . . . . . . . . . . . . . . . . . . Searches Triggered . | . . . . . . . . . . . . . . . . . . Construction Impeded 1 | . . . . . . . 1 . . . . . . . . . . Haulers Reinforced . | . . . . . . . . . . . . . . . . . . Active Scanning Responses . | . . . . . . . . . . . . . . . . . . Cargo Convoy Interrupts . | . . . . . . . . . . . . . . . . . . Stealth | -11 -10 -10 -9 -9 -9 -8 -8 -7 -7 -7 -7 -6 -6 -6 -6 -5 -5 --------- Run | Yrd Mat Min Mat Min Exi Min Mat Fac Gar Fac Gar Fac Gar Fac Gar Fac DSF Distress Signals 2 | . . . 1 . . . 1 . . . . . . . . . . Communications Jammed 1 | . . . . . . . . . . . . . . . 1 . . Distress Signals 1 | . . . . . . . . . . . . . . . 1 . . Times Spotted 180 | . 2 2 14 . . 22 35 15 10 . 8 3 29 . 25 . 15 Peak Tracking Total 8 | . 2 2 6 . . 7 6 4 7 . 4 3 5 . 8 . 7 Tactical Retreats 16 | . . . . . . 2 1 1 1 . 2 . 3 . 4 . 2 Traps | -11 -10 -10 -9 -9 -9 -8 -8 -7 -7 -7 -7 -6 -6 -6 -6 -5 -5 ------- Run | Yrd Mat Min Mat Min Exi Min Mat Fac Gar Fac Gar Fac Gar Fac Gar Fac DSF Traps Triggered 11 | . . . . . . . 2 2 3 1 . . 1 . 1 . 1 Indirectly . | . . . . . . . . . . . . . . . . . . Trap Hack Attempts . | . . . . . . . . . . . . . . . . . . Triggered . | . . . . . . . . . . . . . . . . . . Disarmed . | . . . . . . . . . . . . . . . . . . Reprogrammed . | . . . . . . . . . . . . . . . . . . Reused . | . . . . . . . . . . . . . . . . . . Traps Extracted . | . . . . . . . . . . . . . . . . . . Installed . | . . . . . . . . . . . . . . . . . . Triggered . | . . . . . . . . . . . . . . . . . . Machines | -11 -10 -10 -9 -9 -9 -8 -8 -7 -7 -7 -7 -6 -6 -6 -6 -5 -5 ---------- Run | Yrd Mat Min Mat Min Exi Min Mat Fac Gar Fac Gar Fac Gar Fac Gar Fac DSF Machines Disabled 10 | . . . . . . . 5 4 . . . . 1 . . . . Max in Single Turn 4 | . . . . . . . 4 4 . . . . 1 . . . . Garrison Relay 1 | . . . . . . . . . . . . . 1 . . . . Machines Repaired . | . . . . . . . . . . . . . . . . . . Machines Dismantled . | . . . . . . . . . . . . . . . . . . Machines Sabotaged . | . . . . . . . . . . . . . . . . . . Overloaded Fab Kills . | . . . . . . . . . . . . . . . . . . Hacking | -11 -10 -10 -9 -9 -9 -8 -8 -7 -7 -7 -7 -6 -6 -6 -6 -5 -5 --------- Run | Yrd Mat Min Mat Min Exi Min Mat Fac Gar Fac Gar Fac Gar Fac Gar Fac DSF Machines Accessed 42 | . 2 1 6 . 3 . 10 6 2 5 1 3 1 1 . 1 . Terminals 24 | . 2 . 5 . . . 7 2 2 3 1 . 1 . . 1 . Fabricators . | . . . . . . . . . . . . . . . . . . Repair Stations 4 | . . . 1 . . . 1 1 . . . 1 . . . . . Recycling Units 4 | . . . . . . . 1 1 . 1 . 1 . . . . . Scanalyzers 2 | . . . . . . . 1 1 . . . . . . . . . Garrison Access 4 | . . . . . . . . 1 . 1 . 1 . 1 . . . Total Hacks 92 | . 8 1 16 . 4 . 22 17 2 8 1 7 3 1 . 2 . Successful 37 | . . 1 5 . 4 . 7 6 2 2 1 6 1 1 . 1 . Failed 54 | . 8 . 11 . . . 15 10 . 6 . 1 2 . . 1 . Catastrophic 8 | . 2 . 1 . . . 2 1 . 2 . . . . . . . Database Lockouts 1 | . . . . . . . . 1 . . . . . . . . . Manual 42 | . 8 . 11 . 1 . 14 8 . . . . . . . . . Terminals 58 | . 8 . 14 . . . 16 8 2 4 1 . 3 . . 2 . Fabricators . | . . . . . . . . . . . . . . . . . . Repair Stations 12 | . . . 2 . . . 3 3 . . . 4 . . . . . Recycling Units 7 | . . . . . . . 1 1 . 3 . 2 . . . . . Scanalyzers 4 | . . . . . . . 2 2 . . . . . . . . . Garrison Access 6 | . . . . . . . . 3 . 1 . 1 . 1 . . . Terminal Hacks 20 | . . 1 4 . 4 . 4 2 2 . 1 . 1 . . 1 . Record 4 | . . . . . 3 . 1 . . . . . . . . . . Open Door 1 | . . 1 . . . . . . . . . . . . . . . Open DSF 1 | . . . . . . . . . . . . . . . . 1 . Branch Access Points 2 | . . . 1 . . . . 1 . . . . . . . . . Emergency Access Points 3 | . . . . . . . . . 1 . 1 . 1 . . . . Alert Level 1 | . . . . . . . 1 . . . . . . . . . . Unreport Threat 6 | . . . 3 . . . 2 1 . . . . . . . . . Patrol Navigation 1 | . . . . . . . . . 1 . . . . . . . . Proto ID Catalog 1 | . . . . . 1 . . . . . . . . . . . . Fabricator Hacks . | . . . . . . . . . . . . . . . . . . Repair Station Hacks 9 | . . . 1 . . . 2 2 . . . 4 . . . . . Scan Component 5 | . . . 1 . . . 1 1 . . . 2 . . . . . Repair 4 | . . . . . . . 1 1 . . . 2 . . . . . Recycling Unit Hacks 3 | . . . . . . . 1 . . 1 . 1 . . . . . Retrieve Components 3 | . . . . . . . 1 . . 1 . 1 . . . . . Scanalyzer 1 | . . . . . . . . 1 . . . . . . . . . Retrieve Study 1 | . . . . . . . . 1 . . . . . . . . . Garrison Access Hacks 4 | . . . . . . . . 1 . 1 . 1 . 1 . . . Unlock Access 4 | . . . . . . . . 1 . 1 . 1 . 1 . . . Unauthorized Hacks . | . . . . . . . . . . . . . . . . . . Terminals . | . . . . . . . . . . . . . . . . . . Fabricators . | . . . . . . . . . . . . . . . . . . Repair Stations . | . . . . . . . . . . . . . . . . . . Recycling Units . | . . . . . . . . . . . . . . . . . . Scanalyzers . | . . . . . . . . . . . . . . . . . . Garrison Access . | . . . . . . . . . . . . . . . . . . Data Cores Recovered . | . . . . . . . . . . . . . . . . . . Used . | . . . . . . . . . . . . . . . . . . Hacking Detections 29 | . 2 . 5 . . . 9 5 . 4 1 1 1 1 . . . Full Trace Events 7 | . 2 . 1 . . . 2 1 . . . 1 . . . . . Feedback Events 1 | . . . . . . . 1 . . . . . . . . . . Corruption 1 | . . . . . . . 1 . . . . . . . . . . Feedback Blocked . | . . . . . . . . . . . . . . . . . . Robot Schematics Acquired . | . . . . . . . . . . . . . . . . . . Robots Built . | . . . . . . . . . . . . . . . . . . Authchips . | . . . . . . . . . . . . . . . . . . Time . | . . . . . . . . . . . . . . . . . . Total Robot Build Rating . | . . . . . . . . . . . . . . . . . . Part Schematics Acquired . | . . . . . . . . . . . . . . . . . . Parts Built . | . . . . . . . . . . . . . . . . . . Authchips . | . . . . . . . . . . . . . . . . . . Time . | . . . . . . . . . . . . . . . . . . Total Part Build Rating . | . . . . . . . . . . . . . . . . . . Part Studies Acquired 1 | . . . . . . . . 1 . . . . . . . . . Parts Repaired 4 | . . . . . . . 1 1 . . . 2 . . . . . Time 206 | . . . . . . . 44 38 . . . 124 . . . . . Parts Recycled . | . . . . . . . . . . . . . . . . . . Recycled Matter . | . . . . . . . . . . . . . . . . . . Retrieved Matter . | . . . . . . . . . . . . . . . . . . Retrieved Components 3 | . . . . . . . 2 . . . . 1 . . . . . Parts Scanalyzed . | . . . . . . . . . . . . . . . . . . Part Schematics Acquired . | . . . . . . . . . . . . . . . . . . Parts Damaged . | . . . . . . . . . . . . . . . . . . Bothacking | -11 -10 -10 -9 -9 -9 -8 -8 -7 -7 -7 -7 -6 -6 -6 -6 -5 -5 ------------ Run | Yrd Mat Min Mat Min Exi Min Mat Fac Gar Fac Gar Fac Gar Fac Gar Fac DSF Used RIF Installer 4 | . . . . . . . . . 1 . 1 . 1 . 1 . . Threat Obfuscator 1 | . . . . . . . . . . . 1 . . . . . . Robot Detection 1 | . . . . . . . . . . . . . . . 1 . . Structural Interface 1 | . . . . . . . . . . . . . 1 . . . . Robots Hacked 4 | . . . . . . . . . . . . . . . 3 . 1 Non-combat . | . . . . . . . . . . . . . . . . . . Combat 4 | . . . . . . . . . . . . . . . 3 . 1 Robot Hacks Applied 4 | . . . . . . . . . . . . . . . 3 . 1 amplify_resonance 1 | . . . . . . . . . . . . . . . 1 . . formatsys_high 3 | . . . . . . . . . . . . . . . 2 . 1 Relay Couplers Released 4 | . . . . . . . . . . . . . 4 . . . . Machine Destruction 4 | . . . . . . . . . . . . . 4 . . . . Attached 3 | . . . . . . . . . . . . . . . 2 . 1 Fabnet Peak Effective % . | . . . . . . . . . . . . . . . . . . Robots Rewired 6 | . . . . . . . . . . . . . 6 . . . . Allies Hacked . | . . . . . . . . . . . . . . . . . . Hacks Repelled . | . . . . . . . . . . . . . . . . . . Allies | -11 -10 -10 -9 -9 -9 -8 -8 -7 -7 -7 -7 -6 -6 -6 -6 -5 -5 -------- Run | Yrd Mat Min Mat Min Exi Min Mat Fac Gar Fac Gar Fac Gar Fac Gar Fac DSF Total Allies 16 | . . . . 3 . . 1 . . . . . 7 . 4 . 1 Largest Group 7 | . . . . 3 3 3 1 1 . . . . 7 . 2 1 1 Highest-Rated Group 154 | . . . . 40 40 40 90 90 . . . . 154 . 85 85 85 Highest-Rated Ally 90 | . . . . 16 16 16 90 90 . . . . 85 . 85 85 85 Total Orders 25 | . . 1 3 1 . . 3 1 . . . 3 6 . 5 . 2 STAY 5 | . . . . . . . 1 1 . . . . 2 . 1 . . ROAM 3 | . . . 1 . . . . . . . . . . . 1 . 1 FOLLOW 4 | . . . . . . . 1 . . . . . 2 . 1 . . GUARD 1 | . . . . . . . . . . . . . . . 1 . . AID 5 | . . . . . . . 1 . . . . . 2 . 1 . 1 EXPLORE 5 | . . 1 2 1 . . . . . . . 1 . . . . . RETURN 2 | . . . . . . . . . . . . 2 . . . . . Ally Attacks 119 | . . . . . . 22 16 . . . . . 48 . 31 . 2 Total Damage 3738 | . . . . . . 238 677 . . . . . 1323 . 1339 . 161 Kills 29 | . . . . . . 4 4 . . . . . 11 . 10 . . Allies Corrupted 1 | . . . . . . . . . . . . . . . . . 1 Allies Melted . | . . . . . . . . . . . . . . . . . . Field Lobotomies 5 | . . . . . . . 1 . . . . . 1 . 3 . . Intel | -11 -10 -10 -9 -9 -9 -8 -8 -7 -7 -7 -7 -6 -6 -6 -6 -5 -5 ------- Run | Yrd Mat Min Mat Min Exi Min Mat Fac Gar Fac Gar Fac Gar Fac Gar Fac DSF Active Infowar (turns) 9135 | . 316 263 1202 106 1154 942 . 22 1136 615 550 679 1401 170 579 . . Sensors 3983 | . 316 263 1202 106 1154 942 . . . . . . . . . . . Jamming 5152 | . . . . . . . . 22 1136 615 550 679 1401 170 579 . . Robot Analysis Total . | . . . . . . . . . . . . . . . . . . Derelict Logs Recovered 1 | . . . . 1 . . . . . . . . . . . . . Drone Launches 26 | . . 1 2 1 . . . . . . . 3 . . . . 19 Drone Recoveries 6 | . . 1 2 . . . . . . . . 3 . . . . . Exploration | -11 -10 -10 -9 -9 -9 -8 -8 -7 -7 -7 -7 -6 -6 -6 -6 -5 -5 ------------- Run | Yrd Mat Min Mat Min Exi Min Mat Fac Gar Fac Gar Fac Gar Fac Gar Fac DSF Turns Passed 16632 | 53 409 361 1202 106 1154 2242 2517 2155 1136 615 615 679 1401 170 1301 4 512 Spaces Moved 8998 | 39 174 185 511 49 556 777 1659 1521 567 440 329 332 833 150 719 3 154 Core 160 | 3 . . . . . 103 2 . . . . . . . 41 . 11 Treads . | . . . . . . . . . . . . . . . . . . Legs 7599 | 36 174 185 511 49 556 674 418 1521 567 440 329 332 833 150 678 3 143 Wheels . | . . . . . . . . . . . . . . . . . . Hover 1239 | . . . . . . . 1239 . . . . . . . . . . Flight . | . . . . . . . . . . . . . . . . . . Fastest Speed 50 | 50 120 120 120 190 190 120 56 118 120 120 120 120 113 113 50 190 100 Average Speed 132 | 114 120 129 189 190 206 182 97 119 120 120 121 122 113 113 123 190 239 Slowest Speed 550 | 120 120 190 190 190 260 300 250 123 120 120 190 190 120 113 550 190 400 Overloaded Moves . | . . . . . . . . . . . . . . . . . . Propulsion Burnouts . | . . . . . . . . . . . . . . . . . . Robots Hopped 5 | . . . . . . . . . . . . . . . . . 5 Potential Cave-ins 2 | . . . . . . . . . . . . 2 . . . . . Cave-ins Triggered . | . . . . . . . . . . . . . . . . . . Exploration Rate (%) 42 | 4 33 47 32 37 89 80 60 31 57 9 43 8 64 4 46 . 73 Regions Visited 17 Branch Regions 4 Pre-discovered Areas . | . . . . . . . . . . . . . . . . . . Known Exits Taken 6 | . . . 1 . . . . 1 . 1 . 1 . 1 . 1 . Unknown Exits Taken 7 | 1 1 1 . 1 1 1 1 . . . . . . . . . . Scrap Searched 4 | . . 3 . . . 1 . . . . . . . . . . . Spaces Dug 9 | . . . . . . . . 3 . . . 6 . . . . . Terrain Destroyed 91 | . . . 4 . . . 27 25 . . 1 19 15 . . . . Melee . | . . . . . . . . . . . . . . . . . . Projectile 52 | . . . . . . . 17 10 . . 1 19 5 . . . . AOE 38 | . . . 4 . . . 10 15 . . . . 9 . . . . Terrain Rammed . | . . . . . . . . . . . . . . . . . . Walls Destroyed . | . . . . . . . . . . . . . . . . . . Machines Disabled . | . . . . . . . . . . . . . . . . . . Actions | -11 -10 -10 -9 -9 -9 -8 -8 -7 -7 -7 -7 -6 -6 -6 -6 -5 -5 --------- Run | Yrd Mat Min Mat Min Exi Min Mat Fac Gar Fac Gar Fac Gar Fac Gar Fac DSF Total 13013 | 44 372 288 684 62 560 1520 2409 1796 1004 527 502 573 1196 150 1055 2 269 Wait 3264 | . 193 92 125 13 . 668 624 215 397 86 135 212 234 . 216 . 54 Move 8974 | 38 173 184 510 48 555 776 1658 1520 566 439 328 331 832 150 718 2 146 Hop 3 | . . . . . . . . . . . . . . . . . 3 Pick Up 65 | . 3 1 3 . 1 1 9 5 7 . 3 2 16 . 9 . 5 Fast Attach 70 | 6 1 . 3 . . 8 19 6 . . 1 3 . . 18 . 5 Attach 31 | . . . 2 1 1 4 7 1 . . 1 3 1 . 6 . 4 Detach 22 | . . . 1 . 1 3 4 3 . . . 1 . . 6 . 3 Swap 96 | . 2 2 7 . 2 8 11 9 4 1 5 3 17 . 19 . 6 Drop 81 | . . . 4 . . 5 6 6 9 1 6 1 19 . 14 . 10 Fire 344 | . . 9 29 . . 45 71 30 11 . 23 17 51 . 37 . 21 Melee . | . . . . . . . . . . . . . . . . . . Ram . | . . . . . . . . . . . . . . . . . . Kick 5 | . . . . . . 2 . 1 . . . . . . 2 . . Crush . | . . . . . . . . . . . . . . . . . . Escape Stasis 27 | . . . . . . . . . 10 . . . . . 5 . 12 Rewire 31 | . . . . . . . . . . . . . 26 . 5 . . Trap . | . . . . . . . . . . . . . . . . . . Miscellaneous . | . . . . . . . . . . . . . . . . . . Route ------- -11/Scrapyard -10/Materials -10/Mines -9/Materials (discovered 2 exits: *Min x2) -9/Mines -9/Exiles (discovered 2 exits: [*Min x2]) -8/Mines -8/Materials -7/Factory (discovered 6 exits: *Fac x2 / Sto / *Low x2 / Gar) -7/Garrison (discovered 2 exits: *Fac x2) -7/Factory (discovered 2 exits: *Sto / Gar) -7/Garrison -6/Factory (discovered 2 exits: *Fac / Gar) -6/Garrison (discovered 2 exits: *Fac x2) -6/Factory -6/Garrison -5/Factory -5/DSF History --------- Turn | Location | Event 3 | -11/Scrapyard | Discovered new exit (range 16) 54 | -11/Scrapyard | Entered Materials 301 | -10/Materials | Build established: Mutant 400 | -10/Materials | Discovered new exit (range 4) 463 | -10/Materials | Entered Mines 486 | -10/Mines | Met a Derelict bent on vengeance 559 | -10/Mines | Found the Drone Emporium 568 | -10/Mines | Found Prototype Device 571 | -10/Mines | Identified Sensor Drone Bay 818 | -10/Mines | Discovered new exit (range 7) 824 | -10/Mines | Entered Materials 824 | -9/Materials | Evolved 2 slots: Utility x2 1636 | -9/Materials | Lost 3 parts (1p1u1w) 1866 | -9/Materials | Identified exit to Mines 2026 | -9/Materials | Entered Mines 2049 | -9/Mines | Assembled infested the area 2071 | -9/Mines | Learned Materials interactive machine intel 2097 | -9/Mines | Discovered new exit (range 3) 2116 | -9/Mines | Assisted by bots powering up and referring to "LRC-V3" 2132 | -9/Mines | Entered Exiles 2132 | -9/Exiles | Accompanied by 3 allies 2161 | -9/Exiles | Discovered new exit (range 15) 2186 | -9/Exiles | Met 8R-AWN 2216 | -9/Exiles | Met EX-HEX 2273 | -9/Exiles | Met EX-BIN 2303 | -9/Exiles | Aligned with FarCom system 2305 | -9/Exiles | Given EX-Vault access code 2349 | -9/Exiles | Opened EX-Vault 2364 | -9/Exiles | Found Field Lobotomy Kit 2483 | -9/Exiles | Warned to stay clear of 0b10 Research branches 2534 | -9/Exiles | Met EX-DEC 2623 | -9/Exiles | Visited The Gauntlet 3262 | -9/Exiles | Discovered new exit (range 14) 3286 | -9/Exiles | Left Exiles lab with Field Lobotomy Kit 3286 | -9/Exiles | Entered Mines 3286 | -8/Mines | Accompanied by 3 allies 3481 | -8/Mines | Lost 3 allies 3887 | -8/Mines | Build established: Scavenger-Skirmisher 4255 | -8/Mines | Core integrity fell below 50% 4315 | -8/Mines | Lost 6 parts (2n3u1w) 4581 | -8/Mines | Build established: Mutant 5334 | -8/Mines | Core integrity fell below 20% 5502 | -8/Mines | Discovered new exit (range 6) 5528 | -8/Mines | Entered Materials 5528 | -8/Materials | Evolved 2 slots: Utility x2 5529 | -8/Materials | Loaded intel: 19 interactive machine locations 5847 | -8/Materials | Assimilated H-61 Shepherd with FLK Orb 5980 | -8/Materials | Repaired Gravmag System 6912 | -8/Materials | Lost 3 parts (1p1n1u) 7233 | -8/Materials | Lost 3 parts (1u2w) 7715 | -8/Materials | Discovered new exit (range 16) 8045 | -8/Materials | Entered Factory 8045 | -7/Factory | Accompanied by 1 ally 8045 | -7/Factory | Evolved 2 slots: Propulsion x1, Weapon x1 8129 | -7/Factory | Central database locked down 8285 | -7/Factory | Identified exit to Storage 8285 | -7/Factory | Identified exit to Lower Caves 8367 | -7/Factory | Discovered new exit (range 6) 8403 | -7/Factory | Build established: Gunner 9142 | -7/Factory | Repaired Reaction Control System 9444 | -7/Factory | Discovered new exit (range 7) 10084 | -7/Factory | Build established: Skirmisher 10189 | -7/Factory | Identified exit to Garrison 10200 | -7/Factory | Entered Garrison 10494 | -7/Garrison | Triggered checkpoint 10693 | -7/Garrison | Discovered new exit (range 9) 10755 | -7/Garrison | Triggered checkpoint 11090 | -7/Garrison | Discovered new exit (range 7) 11177 | -7/Garrison | Installed Relay Interface Framework 11336 | -7/Garrison | Entered Factory 11374 | -7/Factory | Discovered exit to Storage (range 9) 11950 | -7/Factory | Identified exit to Garrison 11951 | -7/Factory | Entered Garrison 12251 | -7/Garrison | Triggered checkpoint 12342 | -7/Garrison | Discovered new exit (range 3) 12491 | -7/Garrison | Expanded RIF knowledge: Threat Obfuscation 12566 | -7/Garrison | Entered Factory 12566 | -6/Factory | Evolved 2 slots: Power x1, Utility x1 12658 | -6/Factory | Repaired Myomer Leg 12722 | -6/Factory | Repaired Myomer Leg 12995 | -6/Factory | Discovered new exit (range 9) 13220 | -6/Factory | Build established: Hacker-Skirmisher 13241 | -6/Factory | Identified exit to Garrison 13245 | -6/Factory | Entered Garrison 13460 | -6/Garrison | Spotted B-75 Beast 13481 | -6/Garrison | Assimilated B-75 Beast with FLK Orb 13827 | -6/Garrison | Triggered checkpoint 13827 | -6/Garrison | Triggered checkpoint 13854 | -6/Garrison | Garrison Relay disabled 14061 | -6/Garrison | Discovered new exit (range 14) 14117 | -6/Garrison | Expanded RIF knowledge: Structural Interface 14299 | -6/Garrison | Triggered checkpoint 14320 | -6/Garrison | Triggered checkpoint 14354 | -6/Garrison | Lost 4 allies 14416 | -6/Garrison | Discovered new exit (range 15) 14439 | -6/Garrison | Triggered checkpoint 14605 | -6/Garrison | Build established: Bothacker-Skirmisher 14646 | -6/Garrison | Entered Factory 14816 | -6/Factory | Identified exit to Garrison 14816 | -6/Factory | Entered Garrison 14884 | -6/Garrison | Spotted B-75 Beast 15045 | -6/Garrison | Allies destroyed B-75 Beast 15086 | -6/Garrison | Expanded RIF knowledge: Robot Detection 15242 | -6/Garrison | Build established: Bothacker-Tank 15297 | -6/Garrison | Triggered checkpoint 15467 | -6/Garrison | Spotted B-75 Beast 15476 | -6/Garrison | Triggered checkpoint 15534 | -6/Garrison | Triggered checkpoint 15535 | -6/Garrison | System corruption reached 10% 15558 | -6/Garrison | Core integrity fell below 50% 15564 | -6/Garrison | Assimilated G-50 Soldier with FLK Orb 15566 | -6/Garrison | P-60 Hacker assimilated allied Soldier 5a 15568 | -6/Garrison | Lost 8 parts (1p3n3u1w) 15572 | -6/Garrison | Assimilated Soldier 5a with FLK Orb 15585 | -6/Garrison | Assimilated B-75 Beast with FLK Orb 15768 | -6/Garrison | Triggered checkpoint 15786 | -6/Garrison | Discovered new exit (range 14) 15890 | -6/Garrison | Triggered checkpoint 16117 | -6/Garrison | Entered Factory 16117 | -5/Factory | Accompanied by 1 ally 16117 | -5/Factory | Evolved 2 slots: Utility x2 16121 | -5/Factory | Identified exit to DSF 16121 | -5/Factory | Entered DSF 16121 | -5/DSF | Accompanied by 1 ally 16130 | -5/DSF | Build established: Bothacker-Skirmisher 16136 | -5/DSF | Additional patrols routed to DSF 16418 | -5/DSF | Sterilization system engaged 16418 | -5/DSF | Lost 4 parts (1p1n1u1w) 16438 | -5/DSF | Ambient heat levels rising (+10) 16453 | -5/DSF | Ambient heat levels rising (+10) 16468 | -5/DSF | Ambient heat levels rising (+10) 16483 | -5/DSF | Ambient heat levels rising (+10) 16498 | -5/DSF | Ambient heat levels rising (+10) 16513 | -5/DSF | Ambient heat levels rising (+10) 16528 | -5/DSF | Ambient heat levels rising (+10) 16543 | -5/DSF | Ambient heat levels rising (+10) 16558 | -5/DSF | Ambient heat levels rising (+10) 16573 | -5/DSF | Ambient heat levels rising (+10) 16588 | -5/DSF | Ambient heat levels rising (+10) 16603 | -5/DSF | Ambient heat levels rising (+10) 16614 | -5/DSF | Core integrity fell below 50% 16618 | -5/DSF | Ambient heat levels rising (+10) 16619 | -5/DSF | Core integrity fell below 20% 16625 | -5/DSF | Lost 18 allies 16633 | -5/DSF | Ambient heat levels rising (+10) 16634 | -5/DSF | Core melted Last Messages --------------- 16621_ Field strength at 94. 16622_ Field strength at 88. 16623_ Field strength at 82. 16624_ Overheating: Energy bleed (-10). 16624_ Field strength at 76. 16625_ Overheating: Matter decay (-35). 16625_ Field strength at 70. 16626_ Overheating: Energy bleed (-21). 16626_ Field strength at 64. 16627_ Field strength at 58. 16628_ Overheating: Energy bleed (-11). 16628_ Field strength at 52. 16629_ Field strength at 46. 16630_ Overheating: Matter decay (-22). 16630_ Field strength at 40. 16631_ Field strength at 34. 16632_ Field strength at 28. 16633_ ALERT: Ambient heat levels +10. 16633_ Field strength at 22. 16634_ Overheating: Core damaged (-190). Map ----- +----------------------------------------------------+ | | | | | | | | | | | | | | | | | | | | | ????????????????????????????????????????????????? | | ????????????????????????????????????????????????? | | ????????????????????????????????????????????????? | | ????????????????????????????????????????????????? | | ????????????????????????????????????????????????? | | ????????????????????????????????????????????????? | | ?????????????????????########???????????????????? | | ????????????????????? ==#???????????????????? | | ????????????????????? ==????????????????????? | | ?????????????????????? ????????????????????? | | ?????????????????????? ?????????????????????? | | ??????????????????????# #?????????????????????? | | ????????????????????### ###???????????????????? | | ????????????????????#== #???????????????????? | | ????????????????????#==^^ #???????????????????? | | ????????????????????#==^@^ #???????????????????? | | ????????????????????### ###???????????????????? | | ????????????????????#= !!#???????????????????? | | ????????????????????#= !!#???????????????????? | | ????????????????????#= !!#???????????????????? | | ????????????????###?### %###?#####??######?????? | | ????????????# ??#!!!?## ###***#!!!## ==#?????? | | ????????? ## #!!!##% % ##***#!!!## ==#?????? | | ???????? % ! *![ !!#?????? | | ???????? % ]=%*!"%*!!#?????? | | ???????? =!] !%!!!!="%%=!!#?????? | | ????????? ##///#!!!## ! ##!!!"===## !!!#?????? | | ????????????#/??#!!!?## %###!!!#===## !!#?????? | | ????????????????###?### ###?###?####% ###?????? | | ????????????????????#!!% ==#??????#!!==!#??????? | | ????????????????????#!!]* ==#??????#!%=%!#??????? | | ????????????????????#!!*! ==#??????#! !#??????? | | ????????????????????### ###??????###%%##??????? | | ????????????????????# #??????#!! % #??????? | | ????????????????????# #??????#!! #??????? | | ????????????????????# ##########% "##?????? | | ????????????????????### ###!! #!!##" ""##????? | | ????????????????????### ###!!!#!!#%% """##???? | | ????????????????????# [ ! *% %%%% %% """""#??? | | ????????????????????# ^^^%!!| %%%% "" #"#??? | +----------------------------------------------------+ Best States ------------- Heat Dissipation 113 Energy Generation 43 Energy Capacity 1040 Matter Stores 300 Matter Capacity 300 Sight Range 16 Robot Scan Range 14 Terrain Scan Density 10 Jamming Range 12 Base Temperature (-) 100 Armor Coverage 600 Core Shielding 20 Weapon Cycling 30 Phase Shifting 10 Evasion (%) 65 Targeting Accuracy 5 Core Analysis 9 Armor Integrity Analysis 30 Particle Charging 25 Offensive Hacking 10 Defensive Hacking 10 Relay Coupler Types 1 Relay Coupler Value 34 Authchip Count 5 Item Schematics ----------------- None Robot Schematics ------------------ None Fabricated ------------ Nothing Repaired ---------- Gravmag System | 66% | -8/Materials Reaction Control System | 6% | -7/Factory Myomer Leg | 56% | -6/Factory Myomer Leg | 73% | -6/Factory Studied --------- Titanium Leg | -7/Factory | Hacked Alien Tech Used ----------------- None Achievements -------------- Assimilation Complete Error 47 Infiltrator Join The Dark Side Let Me Out Of Here Mindtrick You Will Be Upgraded Challenges ------------ None Game ------ Seed ChainCoolantEdition Manual? 0 Play Time 02:17:25 Cumulative 42.7 hours Start 2026.08.30 @ 14:55:10 End 2026.08.30 @ 17:48:02 Sessions 3 Manual Loads 0 Difficulty Rogue Special Mode None Game No. 63 Rogue 63 Adventurer 0 Explorer 0 Win Type - Total 0 Types 0/0/0/0/0/0/0/0/0/0 Lore% 31 Gallery% 31 Achievement% 29 Wizard Run 0 Options --------- Layout 1 ASCII 0 Keyboard 0 Movement Mouse Keybinds 0 Fullscreen 2 Font 24/Smallcaps Map View 50x35 Zoom Use 0% Tactical HUD 1 Map Filters NONE Filters NONE Steam 1 RUN: ef6c9097-5963-493c-acca-f59a79ba69a3